[Event "4NCL 2022-2023"]
[Site "Daventry"]
[Date "2023.01.14"]
[Round "3.34"]
[White "Gormally, Daniel W"]
[Black "Kilpatrick, Callum"]
[Result "1/2-1/2"]
[ECO "D85"]
[WhiteElo "2450"]
[BlackElo "2413"]
[Annotator "TA"]
[PlyCount "69"]
[EventDate "2022.10.20"]
[EventType "team-tourn"]
[EventCountry "ENG"]
[SourceTitle "playchess.com"]
[Source "ChessBase"]
[SourceQuality "1"]
[TimeControl "40/6000+30:2400+30"]

{[%evp 16,69,0,0,23,33,85,64,71,66,113,106,106,116,113,112,110,47,46,44,34,40,122,67,68,40,107,23,16,16,21,0,0,0,0,0,0,0,0,0,0,0,0,0,0,-8,-8,-8,0,0,0,0,0,0,0,0]} 1. d4 {[%emt 0:00:03]} Nf6 {[%emt 0:02:49]} 2. c4 {[%emt 0:00:05]} g6 {[%emt 0:02:19]} 3. Nc3 {[%emt 0:00:06]} d5 {[%emt 0:00:31]} 4. cxd5 {[%emt 0:00:06]} Nxd5 {[%emt 0:00:04]} 5. e4 {[%emt 0:00:04]} Nxc3 {[%emt 0:00:09]} 6. bxc3 {[%emt 0:00:05]} Bg7 {[%emt 0:00:13]} 7. Nf3 {[%emt 0:00:16]} c5 {[%emt 0:00:16]} 8. h3 $1 {[%emt 0:00:04][%mdl 4] 8.h3 is a critical line.} O-O {[%emt 0:08:37]} 9. Be2 {[%emt 0:00:05]} ({Much worse is} 9. dxc5 Bxc3+ 10. Bd2 Bxa1 11. Qxa1 Nc6 $15) 9... Nd7 {[%emt 0:11:42] D85: Exchange Grünfeld: Unusual White 7th moves and lines with 7 Nf3.} 10. O-O {[%emt 0:03:23] [#]} e5 $146 {[%emt 0:02:26]} (10... b6 $14) ({Predecessor:} 10... Nf6 11. e5 Nd5 12. Qb3 cxd4 13. cxd4 Be6 14. Qxb7 Nc3 15. Bd3 Bd5 16. Qb4 Rc8 17. Bg5 {0-1 Lisik,V (2440)-Safarli,E (2598) Titled Tuesday intern op 02nd Feb blitz 2021 (1)}) 11. Bg5 {[%emt 0:05:41]} Bf6 {[%emt 0:15:16] White is slightly better.} 12. Bh6 {[%emt 0:01:36] White is more active.} Re8 {[%emt 0:00:06]} (12... Bg7 $14 13. Bxg7 Kxg7) 13. d5 $16 {[%emt 0:05:48]} Nb6 {[%emt 0:09:14]} 14. a4 {[%emt 0:06:31]} Bd7 {[%emt 0:04:24]} 15. Be3 {[%emt 0:00:11]} Qc7 {[%emt 0:06:33]} 16. d6 {[%emt 0:07:56]} (16. Qc2 $16) 16... Qc6 $14 {[%emt 0:01:52][%csl LRa4,LRe4][%cal Rb6a4]} 17. Bb5 {[%emt 0:03:28]} Qxe4 {[%emt 0:02:58]} 18. Nd2 {[%emt 0:11:48]} Qh4 {[%emt 0:07:56]} (18... Qf5 $14) 19. Nb3 {[%emt 0:04:40]} (19. Bxc5 $16 a6 20. Be2 Bxa4 21. Qb1) 19... Bxb5 {[%emt 0:12:18]} (19... Nxa4 $2 20. Rxa4 Qxa4 21. Bxa4 Bxa4 22. Qf3 $18) 20. axb5 {[%emt 0:00:05]} Nd7 {[%emt 0:00:31]} (20... Qc4 $1 $14) 21. Nxc5 {[%emt 0:05:41]} (21. Qd5 $16) 21... Nxc5 $11 {[%emt 0:00:06]} 22. Bxc5 {[%emt 0:00:04] [#] Black must now prevent Qd5. The position is equal.} Qc4 {[%emt 0:08:28][%csl LRb5,LRc3,LRc5] Inhibits Qd5.} 23. d7 {[%emt 0:08:29]} Re6 {[%emt 0:00:47]} 24. Rxa7 {[%emt 0:01:33]} Rd8 {[%emt 0:00:15]} 25. Be3 {[%emt 0:08:57]} Qxb5 {[%emt 0:00:14]} 26. Qb1 {[%emt 0:00:52]} Qxb1 {[%emt 0:06:20]} 27. Rxb1 {[%emt 0:00:13]} Rxd7 {[%emt 0:00:03]} 28. Rbxb7 {[%emt 0:01:06]} Rxb7 {[%emt 0:00:04]} 29. Rxb7 {[%emt 0:00:07][%mdl 4096] Endgame KRB-KRB} Rc6 {[%emt 0:00:36]} 30. Rb6 {[%emt 0:07:04]} Rxb6 {[%emt 0:00:13]} 31. Bxb6 {[%emt 0:00:04]} e4 {[%emt 0:06:44]} 32. c4 {[%emt 0:00:59]} Bc3 {[%emt 0:00:43]} 33. Kf1 {[%emt 0:03:49]} f5 {[%emt 0:00:21]} 34. Ke2 {[%emt 0:00:19]} Kf7 {[%emt 0:00:03]} 35. f3 {[%emt 0:00:10] Weighted Error Value: White=0.14 (very precise) /Black=0.16 (very precise)} 1/2-1/2

[Event "4NCL 2022-2023"]
[Site "Daventry"]
[Date "2023.01.14"]
[Round "3.35"]
[White "Pein, Jonathan"]
[Black "Bates, Richard A"]
[Result "1-0"]
[ECO "B30"]
[WhiteElo "2252"]
[BlackElo "2339"]
[Annotator "TA"]
[PlyCount "57"]
[EventDate "2022.10.20"]
[EventType "team-tourn"]
[EventCountry "ENG"]
[SourceTitle "playchess.com"]
[Source "ChessBase"]
[SourceQuality "1"]
[TimeControl "40/6000+30:2400+30"]

{[%evp 10,57,29,11,23,0,0,20,0,0,240,239,248,220,326,322,302,312,320,329,627,623,607,537,493,514,481,445,724,693,708,711,685,683,637,527,29989,29990,29990,29991,29992,29993,29993,29994,29994,29995,29997,29998,29998,29999]} 1. e4 {[%emt 0:00:03]} c5 {[%emt 0:01:39]} 2. Nc3 {[%emt 0:00:06]} Nc6 {[%emt 0:00:36]} 3. Nf3 {[%emt 0:00:10]} e5 {[%emt 0:00:33]} 4. Bc4 {[%emt 0:01:09]} Be7 {[%emt 0:03:27]} 5. d3 {[%emt 0:00:58]} Nf6 {[%emt 0:02:41]} 6. Ng5 {[%emt 0:00:16]} O-O {[%emt 0:00:17] B30: Sicilian: 2...Nc6 3 Bb5, lines without ...g6.} 7. h4 $1 {[%emt 0:00:02][%mdl 4] is currently scoring better than 7.f4.} Na5 {[%emt 0:14:26] is the legacy move (7...Nd4).} 8. f4 {[%emt 0:00:50]} Nxc4 {[%emt 0:05:25] The position is equal.} 9. dxc4 {[%emt 0:00:12] [#]} exf4 $146 {[%emt 0:10:57] [#]} (9... d6 $11) ({Predecessor:} 9... d6 10. f5 h6 11. Qf3 Bd7 12. Nh3 b5 13. g4 b4 14. Nd1 Bc6 15. Nhf2 Nxe4 16. Nxe4 Bxh4+ {1-0 Kryvoruchko,Y (2675)-Moiseenko,A (2623) UKR-ch 88th Lutsk 2019 (2)}) 10. e5 $1 $18 {[%emt 0:05:37]} Ne8 {[%emt 0:00:46]} (10... h6 $2 11. exf6 Bxf6 12. Nge4) 11. Bxf4 {[%emt 0:11:43]} d6 {[%emt 0:13:15]} (11... d5 {was called for.} 12. Qd3 (12. cxd5 f6 $16) (12. Nxd5 Bf5 $18) (12. Qxd5 h6 $16) 12... g6) 12. Qd3 {[%emt 0:07:59][%csl Gg5][%cal Rd3h7]} g6 {[%emt 0:04:41]} 13. O-O-O {[%emt 0:13:14][%cal Re5d6]} Bf5 {[%emt 0:20:07]} 14. Qg3 {[%emt 0:07:34]} Qa5 $2 {[%emt 0:17:28]} (14... f6 15. exd6 fxg5) 15. h5 {[%emt 0:10:28][%cal Og5h7] aiming for Nxh7!} dxe5 {[%emt 0:02:42]} 16. Bxe5 {[%emt 0:03:57] And now hxg6 would win.} Bxg5+ {[%emt 0:01:16]} 17. Qxg5 {[%emt 0:00:14]} f6 {[%emt 0:00:13] [#]} 18. Qh6 {[%emt 0:09:57][%cal Od1d7] Hoping for Rd7!} fxe5 {[%emt 0:00:05] [#]} (18... Rd8 $142 19. g4 fxe5 20. gxf5 Rxd1+ 21. Rxd1 Rxf5 22. hxg6 Qc7) 19. Rd7 $3 {[%emt 0:05:46][%csl Gd7][%cal Rh6h7][%mdl 576] Double Attack} gxh5 {[%emt 0:05:51] [#]} 20. Rxh5 $1 {[%emt 0:06:31] Intending Rg5+ and mate.} Bg6 {[%emt 0:02:35]} 21. Rxh7 {[%emt 0:02:55]} (21. Rxe5 Rf1+ 22. Kd2 Rf7 23. Rxf7 Bxf7 $17) 21... Rf1+ {[%emt 0:00:14]} 22. Kd2 {[%emt 0:02:01]} Bxh7 {[%emt 0:01:29]} 23. Qxh7+ {[%emt 0:02:14] White mates.} Kf8 {[%emt 0:00:06]} 24. Qh8+ {[%emt 0:03:20]} Kf7 {[%emt 0:00:25]} 25. Rh7+ {[%emt 0:03:11][%mdl 64] Skewer} Ke6 {[%emt 0:00:42]} 26. Qg8+ {[%emt 0:01:20]} Kf5 {[%emt 0:00:13]} 27. Qf7+ {[%emt 0:04:11][%mdl 64] Skewer, Double Attack} ({Inferior is} 27. Rxb7 Qd8+ 28. Ke2 Nd6 29. g4+ (29. Qh7+ Ke6 $11) 29... Kf4 30. Rf7+ {[%mdl 64] Skewer} Nxf7 31. Qxf7+ Kxg4 32. Qxf1 (32. Kxf1 $2 {too greedy.} Qf8 $19) 32... Qh4 $11) 27... Kg5 {[%emt 0:01:15]} 28. Rh5+ {[%emt 0:00:57][%mdl 64] Skewer} Kg4 {[%emt 0:00:14]} 29. Qg6+ {[%emt 0:00:14] White took control after the opening. Ingenious play by Pein!   Weighted Error Value: White=0.07 (flawless) /Black=0.70} 1-0

[Event "4NCL 2022-2023"]
[Site "Daventry"]
[Date "2023.01.14"]
[Round "3.36"]
[White "Ledger, Andrew J"]
[Black "Pein, Malcolm"]
[Result "0-1"]
[ECO "E92"]
[WhiteElo "2314"]
[BlackElo "2302"]
[Annotator "TA"]
[PlyCount "74"]
[EventDate "2022.10.20"]
[EventType "team-tourn"]
[EventCountry "ENG"]
[SourceTitle "playchess.com"]
[Source "ChessBase"]
[SourceQuality "1"]
[TimeControl "40/6000+30:2400+30"]

{[%evp 20,74,85,79,82,77,79,70,78,73,94,60,70,62,104,108,104,83,87,85,101,-103,107,110,130,120,178,122,170,166,152,28,125,16,35,42,30,33,36,-17,-2,-163,-150,-299,-289,-434,-452,-718,-708,-708,-708,-690,-699,-680,-660,-660,-652]} 1. d4 {[%emt 0:00:04]} Nf6 {[%emt 0:00:20]} 2. c4 {[%emt 0:00:18]} g6 {[%emt 0:00:14]} 3. Nc3 {[%emt 0:00:17]} Bg7 {[%emt 0:00:36]} 4. e4 {[%emt 0:01:45]} d6 {[%emt 0:00:30]} 5. Nf3 {[%emt 0:00:29]} O-O {[%emt 0:00:30]} 6. Be2 {[%emt 0:00:05]} e5 {[%emt 0:00:37]} 7. Be3 {[%emt 0:00:08]} c6 {[%emt 0:02:01]} 8. d5 {[%emt 0:01:06]} Ng4 {[%emt 0:01:31]} 9. Bg5 {[%emt 0:01:10]} f6 {[%emt 0:00:10]} 10. Bh4 {[%emt 0:00:16]} c5 {[%emt 0:00:08]} 11. Nd2 {[%emt 0:00:43]} Nh6 {[%emt 0:00:09] E92: King's Indian: Classical: 6 Be2 e5: 7 dxe5, 7 Be3 and Petrosian System without 7...Nbd7.} 12. f3 {[%emt 0:01:04]} Nf7 {[%emt 0:00:31]} 13. Bd3 {[%emt 0:04:01]} Na6 {[%emt 0:03:09] White is slightly better.} 14. a3 {[%emt 0:00:37]} Bh6 {[%emt 0:05:49] [#]} 15. Nf1 $146 {[%emt 0:06:48]} ({Predecessor:} 15. Qe2 Qe7 16. Rb1 Bd7 17. Nf1 Kg7 18. Ne3 Bg5 19. Bf2 h5 20. h4 Bh6 21. g4 hxg4 22. fxg4 {1-0 Volkov,S (2597)-Markidis,K (2342) Paleochora op 3rd 2010 (3)}) 15... Bd7 {[%emt 0:11:10]} 16. Bf2 {[%emt 0:11:38]} f5 {[%emt 0:15:15]} 17. exf5 {[%emt 0:11:25]} gxf5 {[%emt 0:00:14]} 18. Qc2 {[%emt 0:03:05]} e4 {[%emt 0:27:02]} 19. fxe4 {[%emt 0:00:17]} Ne5 {[%emt 0:00:12] [#] Threatens to win with ...Qa5.} 20. Be2 $2 {[%emt 0:03:40]} (20. Ng3 $1 $16) 20... f4 {[%emt 0:04:54] Black is more active.} (20... fxe4 $17 {keeps the pressure on. And now ...Qa5 would win.} 21. Nxe4 Qa5+ 22. Nfd2 Nb4) 21. Nd2 $16 {[%emt 0:05:10]} Kh8 {[%emt 0:03:00]} 22. Nf3 {[%emt 0:07:53]} Ng4 {[%emt 0:00:25]} (22... Nxf3+ $16 23. gxf3 (23. Bxf3 Bg7 $16) 23... Bg7) 23. O-O {[%emt 0:01:54]} (23. e5 $18) 23... Rg8 {[%emt 0:06:01] [#]} (23... Bg7 $16 24. h3 Ne5) 24. e5 $1 $18 {[%emt 0:18:30][%mdl 512]} dxe5 {[%emt 0:06:30]} 25. Qe4 {[%emt 0:05:53]} (25. Kh1 $16) 25... Qf6 {[%emt 0:04:41] [#]} (25... Qf8 $1 $11 26. Nh4 (26. Nxe5 Bf5 $15) 26... Re8) 26. Bd3 {[%emt 0:05:40]} (26. Bh4 $1 $16 {[%cal Rh4f6]} Qg7 27. h3) 26... Qg7 $11 {[%emt 0:01:47] ...Nf6 is the strong threat.} 27. Bh4 {[%emt 0:01:02] aiming for h3.} Raf8 {[%emt 0:02:07]} 28. Qe2 {[%emt 0:01:04]} Ne3 {[%emt 0:02:12] White must now prevent ...Bh3.} 29. Rf2 {[%emt 0:00:50]} ({White should play} 29. Kh1 $1 $14) 29... Bh3 $36 {[%emt 0:01:14][%cal Rh3g2][%mdl 2048] Black has some pressure.} 30. g3 {[%emt 0:01:48]} (30. Kh1 $1 $11 {and White has nothing to worry.} Qxg2+ 31. Rxg2 Bxg2+ 32. Qxg2 Rxg2 33. Be7) 30... Ng4 {[%emt 0:01:19]} 31. Ne4 {[%emt 0:03:49]} (31. Rff1 $17 {is a better defense.}) 31... fxg3 $19 {[%emt 0:01:22]} 32. Bxg3 {[%emt 0:00:37]} (32. hxg3 {was forced.} Be3 {[%mdl 64] Pin} 33. Re1) 32... Be3 {[%emt 0:02:22][%mdl 64] Pin. Black is clearly winning.} ({Stronger than} 32... Nxf2 33. Nxf2 Bf4 34. Nxh3 Bxg3 35. Kh1 $17) 33. Kh1 {[%emt 0:02:48]} (33. Raf1 $142 Bxf1 34. Kxf1) 33... Bxf2 {[%emt 0:04:13]} 34. Nxf2 {[%emt 0:00:31]} Nxf2+ {[%emt 0:00:29]} 35. Qxf2 {[%emt 0:00:09]} Bg4 {[%emt 0:00:37]} 36. Be4 {[%emt 0:01:42]} Bxf3+ {[%emt 0:00:25]} 37. Bxf3 {[%emt 0:00:04]} e4 {[%emt 0:00:10] Black used his chance.   Weighted Error Value: White=0.69/Black=0.24 (precise)} 0-1

[Event "4NCL 2022-2023"]
[Site "Daventry"]
[Date "2023.01.14"]
[Round "3.37"]
[White "Gallana, Marco"]
[Black "Duncan, Chris R"]
[Result "1-0"]
[ECO "D10"]
[WhiteElo "2243"]
[BlackElo "2187"]
[Annotator "TA"]
[PlyCount "67"]
[EventDate "2022.10.20"]
[EventType "team-tourn"]
[EventCountry "ENG"]
[SourceTitle "playchess.com"]
[Source "ChessBase"]
[SourceQuality "1"]
[TimeControl "40/6000+30:2400+30"]

{[%evp 9,67,12,5,17,8,14,25,30,28,37,72,77,67,60,63,61,75,75,70,77,56,61,108,100,139,131,137,102,127,9,389,279,287,251,258,257,301,302,410,417,527,527,526,523,537,541,530,547,529,442,434,433,529,526,552,550,530,545,545,541]} 1. d4 {[%emt 0:00:08]} d5 {[%emt 0:03:40]} 2. c4 {[%emt 0:00:12]} c6 {[%emt 0:00:04]} 3. Nc3 {[%emt 0:00:07]} dxc4 {[%emt 0:02:45]} 4. e3 {[%emt 0:00:51]} b5 {[%emt 0:00:33]} 5. a4 {[%emt 0:00:10]} b4 {[%emt 0:00:27]} 6. Ne4 {[%emt 0:00:43] D10: Slav Defence: 3 cxd5 (without early Nf3) and 3 Nc3.} Qd5 {[%emt 0:01:36]} 7. Nd2 {[%emt 0:01:19]} Ba6 {[%emt 0:00:12]} 8. Ngf3 {[%emt 0:05:58] aiming for e4. White has an edge.} Nf6 {[%emt 0:02:44]} 9. Qc2 {[%emt 0:03:56][%cal Rd2c4]} c3 {[%emt 0:01:09]} 10. bxc3 {[%emt 0:10:37]} Bxf1 {[%emt 0:01:51]} 11. Kxf1 {[%emt 0:00:44]} bxc3 {[%emt 0:00:33]} 12. Qxc3 {[%emt 0:00:26]} e6 {[%emt 0:00:54]} 13. Ba3 {[%emt 0:09:46]} Nbd7 {[%emt 0:05:11]} 14. Bxf8 {[%emt 0:17:46] [#]} (14. Rc1 $5 {[%cal Ra3f8]}) 14... Kxf8 $146 {[%emt 0:01:04]} ({Predecessor:} 14... Rxf8 15. Ke2 Ke7 16. Qa3+ Qd6 17. Rhc1 Rfc8 18. Qxd6+ Kxd6 19. Ra2 Rc7 20. Rac2 Rac8 {½-½ Farago,I (2485)-Ortmann,D (2322) Vienna op 17th 2011 (4)}) 15. Ke2 {[%emt 0:01:14]} Ke7 {[%emt 0:05:12]} (15... g6 $14) 16. Qa3+ {[%emt 0:08:22]} c5 {[%emt 0:14:39]} 17. Rac1 {[%emt 0:00:35][%cal Rd4c5]} Rhc8 {[%emt 0:26:48]} 18. Rhd1 {[%emt 0:02:37] dxc5 is the strong threat.} Qd6 {[%emt 0:19:44]} 19. dxc5 {[%emt 0:18:58]} (19. Nc4 $16 Qa6 20. Ke1) 19... Rxc5 $2 {[%emt 0:02:04][%mdl 8192] This move loses the game for Black.} (19... Nxc5 $11 20. Nd4 (20. Nc4 Qa6 $11) 20... Ncd7 21. Qxd6+ Kxd6) 20. Nc4 $18 {[%emt 0:05:45][%cal Bd2c4,Bc4d6,Bd6b5][%mdl 32]} Qa6 {[%emt 0:00:44]} 21. Ke1 {[%emt 0:01:17] Nfe5 would be deadly.} Rac8 {[%emt 0:06:15] [#]} 22. Nd6 $1 {[%emt 0:06:35]} R8c6 {[%emt 0:03:53][%cal Oc6d6] [#]} 23. Nb5 {[%emt 0:01:31][%cal Of3e5] And now Ne5! would win.} Ke8 {[%emt 0:04:59]} 24. Rxc5 {[%emt 0:03:30]} Rxc5 {[%emt 0:00:41] [#]} 25. Qxc5 {[%emt 0:00:24][%mdl 576] Remove Defender. White is clearly winning.} Nxc5 {[%emt 0:00:33]} 26. Nc7+ {[%emt 0:00:07]} Ke7 {[%emt 0:00:03]} 27. Nxa6 {[%emt 0:00:10]} Nxa6 {[%emt 0:00:02][%cal Bc5a6,Ba6b4,Bb4d3][%mdl 4128] Endgame KRN-KNN} 28. Ne5 {[%emt 0:00:43]} Nb4 {[%emt 0:01:35]} 29. Rb1 {[%emt 0:01:45]} a5 {[%emt 0:01:04]} 30. Nc4 {[%emt 0:00:11]} Nd3+ {[%emt 0:01:14]} 31. Kf1 {[%emt 0:02:35]} Nc5 {[%emt 0:00:18]} 32. Rb5 {[%emt 0:00:39]} Nxa4 {[%emt 0:00:27]} 33. Rxa5 {[%emt 0:00:12]} Nc3 {[%emt 0:00:21]} 34. Ra7+ {[%emt 0:00:16] Weighted Error Value: White=0.13 (very precise) /Black=0.44} 1-0

[Event "4NCL 2022-2023"]
[Site "Daventry"]
[Date "2023.01.14"]
[Round "3.38"]
[White "Ledger, Dave J"]
[Black "Zulfic, Fedja"]
[Result "1-0"]
[ECO "B32"]
[WhiteElo "2162"]
[BlackElo "2145"]
[Annotator "TA"]
[PlyCount "69"]
[EventDate "2022.10.20"]
[EventType "team-tourn"]
[EventCountry "ENG"]
[SourceTitle "playchess.com"]
[Source "ChessBase"]
[SourceQuality "1"]
[TimeControl "40/6000+30:2400+30"]

{[%evp 16,69,30,39,50,45,50,62,51,14,43,-10,99,97,99,93,154,150,158,151,147,148,139,157,182,174,200,184,477,472,450,431,480,467,462,402,402,394,407,393,408,402,478,470,577,575,573,559,545,482,481,468,465,455,478,467]} 1. e4 {[%emt 0:00:06]} c5 {[%emt 0:00:10]} 2. Nf3 {[%emt 0:00:29][%cal Bg1f3,Bf3d4,Bd4b5][%mdl 32]} Nc6 {[%emt 0:00:13]} 3. d4 {[%emt 0:00:05]} cxd4 {[%emt 0:00:04]} 4. Nxd4 {[%emt 0:00:03]} e5 {[%emt 0:00:39]} 5. Nb5 {[%emt 0:01:04]} d6 {[%emt 0:00:09]} 6. c4 {[%emt 0:02:39]} a6 {[%emt 0:00:43]} 7. N5c3 {[%emt 0:01:49]} Be6 {[%emt 0:12:02] is currently scoring better than 7...Nf6.} 8. Be2 {[%emt 0:15:07]} Be7 {[%emt 0:05:40]} 9. O-O {[%emt 0:10:42]} Nf6 {[%emt 0:21:51] B32: Sicilian: Löwenthal and Kalashnikov Variations.} 10. Be3 {[%emt 0:07:28]} O-O {[%emt 0:08:10]} 11. Qd2 {[%emt 0:07:22]} Rc8 {[%emt 0:06:34] White is slightly better.} 12. f3 {[%emt 0:03:22] [#]} Nh5 $146 {[%emt 0:08:15][%cal Oc6d4]} ({Predecessor:} 12... Nd4 13. Bxd4 exd4 14. Nd5 Nxd5 15. cxd5 Bd7 16. Na3 f5 17. Rad1 fxe4 18. fxe4 Rxf1+ 19. Kxf1 {0-1 Laurincova,K (2070)-Petrova,K (2285) CZE-ch (Women) 2021 (4)}) 13. Rd1 {[%emt 0:05:45]} ({White should try} 13. g3 $14) 13... f5 {[%emt 0:09:11] [#]} (13... Nd4 $1 $11) 14. exf5 $1 $16 {[%emt 0:02:37] Black is on the road to losing.} Bxf5 {[%emt 0:02:11][%cal Oh5f4] [#]} 15. Nd5 $1 {[%emt 0:03:08] Repels Nf4} ({Of course not} 15. g4 Bxb1 16. gxh5 Bf5 $11) 15... Nd4 {[%emt 0:16:24]} 16. Bxd4 {[%emt 0:06:14]} exd4 {[%emt 0:00:10]} 17. Qxd4 {[%emt 0:01:08]} Bg5 {[%emt 0:04:51]} 18. Nbc3 {[%emt 0:04:59] Threatens to win with g4. Excellent horsemanship.} Bc2 {[%emt 0:03:40]} 19. Re1 {[%emt 0:05:24]} Bh4 {[%emt 0:07:37]} 20. Rf1 {[%emt 0:10:14]} Kh8 {[%emt 0:01:13]} 21. f4 {[%emt 0:01:31][%cal Bf3f4,Bf4f5][%mdl 32]} Nf6 {[%emt 0:00:41]} (21... Bf6 {might work better.} 22. Nxf6 Nxf6) 22. Ne3 $18 {[%emt 0:02:18]} Bg6 {[%emt 0:00:30]} 23. f5 {[%emt 0:02:06]} Bh5 {[%emt 0:00:27]} 24. Qxh4 {[%emt 0:01:03]} Qb6 {[%emt 0:00:30]} 25. Bxh5 {[%emt 0:01:04]} Qxe3+ {[%emt 0:00:18]} 26. Kh1 {[%emt 0:00:14]} Qh6 {[%emt 0:00:38]} 27. g4 {[%emt 0:03:24]} Rxc4 {[%emt 0:00:03]} 28. Qg3 {[%emt 0:01:18]} Qg5 {[%emt 0:00:58]} 29. Qxd6 {[%emt 0:01:21] White is clearly winning.} Rfc8 {[%emt 0:00:34]} 30. Rad1 {[%emt 0:02:30] Hoping for Bf7.} Nxg4 {[%emt 0:00:32]} 31. Bxg4 {[%emt 0:00:38]} Rxg4 {[%emt 0:00:02]} 32. f6 {[%emt 0:00:47]} gxf6 {[%emt 0:00:57]} 33. Qxf6+ {[%emt 0:01:37]} Qxf6 {[%emt 0:00:07]} 34. Rxf6 {[%emt 0:00:04]} Rb4 {[%emt 0:00:07]} 35. Rd2 {[%emt 0:00:34] Weighted Error Value: White=0.13 (very precise) /Black=0.44} 1-0